bitfinex/quotes_BTCUSD_20251202
["timestamp","ask_amount","ask_price","bid_price","bid_amount"]
[1764645288479,1.85212122,86780.0,86778.0,0.06065365]
[1764645288834,1.85212122,86780.0,86779.0,0.0323]
[1764645288981,1.87701353,86780.0,86779.0,0.0323]
[1764645289176,1.87701353,86780.0,86779.0,0.08243]
[1764645289404,1.85212122,86780.0,86779.0,0.08243]
[1764645290380,2.08258906,86780.0,86779.0,0.08243]
[1764645290673,2.08358906,86780.0,86779.0,0.08243]
[1764645291003,1.85312122,86780.0,86779.0,0.08243]
[1764645291356,1.85312122,86780.0,86779.0,0.3129005]
[1764645292084,1.85312122,86780.0,86779.0,0.08243]
[1764645298707,0.001,86780.0,86779.0,0.08243]
[1764645298970,2.001,86780.0,86779.0,0.08243]
[1764645300978,2.001,86780.0,86779.0,0.0323]
[1764645301436,2.001,86780.0,86779.0,0.08243]
[1764645301970,2.0,86780.0,86779.0,0.08243]
[1764645302172,2.0,86780.0,86773.0,0.230484]
[1764645302173,0.01152498,86768.0,86756.0,0.02379]
[1764645302386,2.0,86757.0,86756.0,0.02379]
[1764645302786,0.01148802,86753.0,86751.0,0.00140261]
[1764645302992,2.0,86752.0,86751.0,0.00140261]
[1764645303310,2.0,86753.0,86752.0,0.0323]
[1764645303919,2.00004436,86753.0,86752.0,0.0323]
[1764645304595,2.23058612,86753.0,86751.0,0.00140261]
[1764645304844,2.0,86752.0,86751.0,0.00140261]
[1764645305476,2.0,86752.0,86751.0,0.00240261]
[1764645305623,2.0,86752.0,86751.0,0.00140261]
[1764645305930,1.8328699,86752.0,86751.0,0.00240261]
[1764645306259,1.8328699,86752.0,86751.0,0.00140261]
[1764645306466,2.06341213,86752.0,86751.0,0.00140261]
[1764645306605,2.17863809,86752.0,86751.0,0.00340261]
[1764645306814,2.06341213,86752.0,86751.0,0.00340261]
[1764645308281,2.06341213,86752.0,86751.0,0.00140261]
[1764645308696,2.06341213,86752.0,86751.0,0.00240261]
[1764645308855,2.06341213,86752.0,86751.0,0.00140261]
[1764645309255,2.06341213,86752.0,86751.0,0.00240261]
[1764645310455,1.8328699,86752.0,86751.0,0.00240261]
[1764645310663,2.06341213,86752.0,86751.0,0.07960261]
[1764645311097,2.06341213,86752.0,86751.0,0.03269261]
[1764645311400,2.06341213,86752.0,86751.0,0.00240261]
[1764645311711,2.07490015,86752.0,86751.0,0.00240261]
[1764645312578,2.07490015,86752.0,86751.0,0.00140261]
[1764645312786,2.07490015,86752.0,86751.0,0.00240261]
[1764645313128,2.07490015,86752.0,86751.0,0.00140261]
[1764645313344,2.07490015,86752.0,86751.0,0.00240261]
[1764645316374,2.06341213,86752.0,86751.0,0.00240261]
[1764645316961,0.23054223,86752.0,86751.0,0.00240261]
[1764645317166,2.23054223,86752.0,86751.0,0.00240261]
[1764645317366,2.24203025,86752.0,86751.0,0.00240261]
[1764645318158,2.07134689,86752.0,86751.0,0.00140261]
[1764645318525,2.07134689,86752.0,86751.0,0.00240261]
[1764645319694,2.05985887,86752.0,86751.0,0.00240261]
[1764645320295,2.07134689,86752.0,86751.0,0.00240261]
[1764645321184,2.05985887,86752.0,86751.0,0.00240261]
[1764645321384,2.07134689,86752.0,86751.0,0.00240261]
[1764645322226,2.07134689,86752.0,86751.0,0.00140261]
[1764645322736,2.07134689,86752.0,86751.0,0.00240261]
[1764645325326,2.07134689,86752.0,86751.0,0.00140261]
[1764645325741,2.07134689,86752.0,86751.0,0.00240261]
[1764645327738,2.07793924,86752.0,86751.0,0.00240261]
[1764645328672,2.07793924,86752.0,86751.0,0.02623261]
[1764645329027,2.07793924,86752.0,86751.0,0.10343261]
[1764645333282,0.23060071,86730.0,86719.0,0.02545]
[1764645333489,0.24214987,86724.0,86721.0,0.02545]
[1764645333690,0.23062198,86722.0,86721.0,0.02545]
[1764645333888,2.23062198,86722.0,86721.0,0.02545]
[1764645334822,2.23062198,86722.0,86721.0,0.02645]
[1764645336393,2.34584794,86722.0,86721.0,0.02645]
[1764645336909,2.23062198,86722.0,86721.0,0.001]
[1764645339846,2.24211,86722.0,86721.0,0.001]
[1764645340381,2.23062198,86722.0,86721.0,0.00194993]
[1764645340609,2.24211,86722.0,86721.0,0.00194993]
[1764645340780,2.35733596,86722.0,86721.0,0.00094993]
[1764645340940,2.37642461,86722.0,86721.0,0.00094993]
[1764645341275,2.37542461,86722.0,86721.0,0.00094993]
[1764645341658,2.37642461,86722.0,86721.0,0.00094993]
[1764645344070,2.40187461,86722.0,86721.0,0.00094993]
[1764645346305,0.40187461,86722.0,86721.0,0.00094993]
[1764645346517,2.27516063,86722.0,86721.0,0.00094993]
[1764645346700,2.27516063,86722.0,86721.0,0.08097993]
[1764645347094,2.23162198,86722.0,86721.0,0.08097993]
[1764645350384,2.001,86722.0,86721.0,0.08097993]
[1764645351107,2.23162198,86722.0,86721.0,0.08097993]
[1764645354591,2.23162198,86722.0,86721.0,0.08136583]
[1764645357435,2.23162198,86722.0,86721.0,0.00133583]
[1764645357673,2.24591979,86722.0,86721.0,0.00133583]
[1764645358344,2.33677695,86722.0,86721.0,0.00133583]
[1764645358466,2.65977695,86722.0,86721.0,0.00133583]
[1764645359098,2.69445901,86722.0,86721.0,0.00133583]
[1764645359311,2.69345901,86722.0,86721.0,0.00133583]
[1764645359772,2.69645901,86722.0,86721.0,0.00133583]
[1764645360396,2.69745901,86722.0,86721.0,0.00133583]
[1764645360809,2.69645901,86722.0,86721.0,0.00133583]
[1764645361042,2.69745901,86722.0,86721.0,0.00133583]
[1764645361246,2.69745901,86722.0,86699.0,0.02397]
[1764645361247,2.98324605,86722.0,86699.0,0.02397]
[1764645361421,2.98324605,86722.0,86699.0,0.02408566]
[1764645361422,2.29989064,86700.0,86699.0,0.02408566]
[1764645361841,2.29989064,86700.0,86699.0,0.02478257]
[1764645362267,2.29989064,86700.0,86699.0,0.00081257]
[1764645362268,2.32469605,86700.0,86699.0,0.00081257]
[1764645362489,2.38873219,86700.0,86699.0,0.00081257]
[1764645362878,2.38873219,86700.0,86699.0,0.00181257]
[1764645363098,2.38873219,86700.0,86699.0,0.00081257]
[1764645363255,2.32469605,86700.0,86699.0,0.00081257]
[1764645363643,2.34278851,86700.0,86699.0,0.00081257]
[1764645365204,2.04289787,86700.0,86699.0,0.08084257]
[1764645365424,2.02480541,86700.0,86699.0,0.08084257]
[1764645365901,2.25548591,86700.0,86699.0,0.08084257]
[1764645366106,2.02480541,86700.0,86699.0,0.08084257]
[1764645366354,2.0,86700.0,86699.0,0.08084257]
[1764645367082,0.2306802,86701.0,86699.0,0.08084257]
[1764645367289,0.25550762,86701.0,86700.0,0.0819]
[1764645367507,2.25550762,86701.0,86700.0,0.0819]
[1764645368614,2.25550762,86701.0,86700.0,0.0829]
[1764645371774,2.02482742,86701.0,86700.0,0.0829]
[1764645372081,2.0,86702.0,86700.0,0.0829]
[1764645372291,2.0,86702.0,86701.0,0.10733]
[1764645373754,2.02482659,86702.0,86701.0,0.10733]
[1764645374725,2.02482659,86702.0,86701.0,0.10833]
[1764645376224,2.02482659,86702.0,86701.0,0.05894]
[1764645376430,2.02482659,86702.0,86701.0,0.10833]
[1764645379179,2.02482659,86702.0,86701.0,0.10896354]
[1764645380422,1.88174632,86702.0,86701.0,0.10896354]
[1764645380604,1.85691973,86702.0,86701.0,0.05957354]
[1764645380934,1.84543171,86702.0,86701.0,0.10896354]
[1764645382440,1.8702673,86702.0,86701.0,0.10896354]
[1764645382811,1.84543171,86702.0,86701.0,0.10896354]
[1764645383236,1.84543171,86708.0,86701.0,0.12049743]
[1764645383440,1.84543171,86709.0,86707.0,0.05794]
[1764645383619,1.84543171,86709.0,86708.0,0.04939]
[1764645383816,1.84543171,86709.0,86708.0,0.0819]
[1764645386033,1.84543171,86709.0,86708.0,0.0829]
[1764645387005,1.84543171,86709.0,86708.0,0.03351]
[1764645387204,1.84543171,86709.0,86708.0,0.0829]
[1764645389931,1.84543171,86715.0,86712.0,0.01153242]
[1764645390132,1.84543171,86715.0,86714.0,0.03251]
[1764645390332,1.84543171,86716.0,86714.0,0.03251]
[1764645390492,1.84543171,86716.0,86715.0,0.08087]
[1764645390875,0.24216905,86717.0,86715.0,0.08087]
[1764645391085,2.24216905,86717.0,86716.0,0.08087]
[1764645392611,2.24216905,86717.0,86716.0,0.08287]
[1764645392812,2.0,86717.0,86716.0,0.08287]
[1764645393019,2.0,86726.0,86719.0,0.01153149]
[1764645393217,2.23061135,86726.0,86725.0,0.05697]
[1764645393618,2.23061135,86726.0,86725.0,0.10578]
[1764645394799,2.0,86726.0,86725.0,0.10578]
[1764645395078,2.0,86727.0,86725.0,0.10578]
[1764645395281,2.0115303,86728.0,86726.0,0.08087]
[1764645395556,2.0,86727.0,86726.0,0.04881]
[1764645395750,2.0,86727.0,86725.0,0.02491]
[1764645396031,2.0,86727.0,86726.0,0.03167]
[1764645396414,2.0,86727.0,86726.0,0.07754566]
[1764645397195,2.0,86727.0,86726.0,0.07854566]
[1764645397470,2.23060869,86727.0,86726.0,0.07854566]
[1764645397621,2.23060869,86727.0,86726.0,0.07754566]
[1764645397787,2.23060869,86727.0,86726.0,0.07854566]
[1764645398429,0.323,86743.0,86731.0,0.0115299]
[1764645398430,0.01152883,86739.0,86731.0,0.0115299]
[1764645398739,2.01152883,86739.0,86738.0,0.05571]
[1764645399046,2.0,86739.0,86738.0,0.05571]
[1764645399256,2.0,86739.0,86738.0,0.10147]
[1764645399602,0.24210209,86741.0,86738.0,0.17512712]
[1764645399603,2.0,86741.0,86738.0,0.17512712]
[1764645399823,2.0,86741.0,86740.0,0.26224412]
[1764645400204,2.0,86741.0,86740.0,0.30700412]
[1764645400986,2.0,86741.0,86740.0,0.07743]
[1764645401322,2.0,86741.0,86740.0,0.07843]
[1764645401778,0.23172091,86742.0,86740.0,0.07843]
[1764645401941,2.0,86741.0,86740.0,0.001]
[1764645402391,2.0,86741.0,86740.0,0.03267]
[1764645402597,2.0,86741.0,86740.0,0.07843]
[1764645403607,2.0,86741.0,86740.0,0.07743]
[1764645404001,2.0,86741.0,86740.0,0.07843]
[1764645404328,2.08069816,86741.0,86740.0,0.001]
[1764645406144,2.01148802,86736.0,86735.0,0.0025]
[1764645407767,2.01148802,86736.0,86735.0,0.0025]
[1764645411491,1.79897112,86736.0,86735.0,0.0025]
[1764645412099,1.78748309,86736.0,86735.0,0.0025]
[1764645412631,1.79897112,86736.0,86735.0,0.0025]
[1764645413286,2.21518572,86736.0,86735.0,0.0025]
[1764645413486,2.27631951,86736.0,86735.0,0.0025]
[1764645414249,0.48883642,86736.0,86735.0,0.0025]
[1764645414450,2.48883642,86736.0,86735.0,0.0025]
[1764645414773,2.4534889,86736.0,86735.0,0.0025]
[1764645414967,2.4524889,86736.0,86735.0,0.0025]
[1764645415325,2.4534889,86736.0,86735.0,0.0025]
[1764645415750,2.4554889,86736.0,86735.0,0.0025]
[1764645419075,2.4554889,86736.0,86726.0,0.00011566]
[1764645419076,0.56509672,86727.0,86726.0,0.00011566]
[1764645419447,2.49520203,86727.0,86726.0,0.00011566]
[1764645419833,2.51924203,86727.0,86726.0,0.00011566]
[1764645420397,2.52324203,86727.0,86726.0,0.00011566]
[1764645421220,2.52224203,86727.0,86726.0,0.00011566]
[1764645421423,2.63746799,86727.0,86726.0,0.00011566]
[1764645421637,2.63846799,86727.0,86726.0,0.00011566]
[1764645421839,2.52324203,86727.0,86726.0,0.00011566]
[1764645422515,2.6117591,86727.0,86726.0,0.00011566]
[1764645423342,2.61439534,86727.0,86726.0,0.00011566]
[1764645426960,2.61439534,86727.0,86713.0,0.00025338]
[1764645426961,2.84740731,86727.0,86713.0,0.00025338]
[1764645427172,2.56787129,86714.0,86713.0,0.00025338]
[1764645427350,2.64724508,86714.0,86713.0,0.00025338]
[1764645427576,2.64998508,86714.0,86713.0,0.00025338]
[1764645427948,2.68467163,86714.0,86713.0,0.00025338]
[1764645428380,2.64558411,86714.0,86713.0,0.00025338]
[1764645428779,2.64832411,86714.0,86713.0,0.00025338]
[1764645429358,2.64558411,86714.0,86713.0,0.00025338]
[1764645430014,2.64832411,86714.0,86713.0,0.00025338]
[1764645431484,2.64932411,86714.0,86713.0,0.00025338]
[1764645431683,2.76455007,86714.0,86713.0,0.00025338]
[1764645431925,2.76355007,86714.0,86713.0,0.00025338]
[1764645432098,2.23069115,86696.0,86695.0,0.01522338]
[1764645432625,2.23069115,86696.0,86695.0,0.10117338]
[1764645432768,0.23069115,86696.0,86695.0,0.10117338]
[1764645432973,2.23069115,86696.0,86695.0,0.10117338]
[1764645433195,2.23069115,86696.0,86695.0,0.05259338]
[1764645433840,2.23069115,86696.0,86695.0,0.10317338]
[1764645437839,2.23069115,86696.0,86695.0,0.10374364]
[1764645440543,2.23069115,86696.0,86695.0,0.05316364]
[1764645440998,2.23069115,86696.0,86695.0,0.10374364]
[1764645441763,2.23069115,86696.0,86695.0,0.00257026]
[1764645442020,2.24217918,86696.0,86695.0,0.00257026]
[1764645442181,2.24065082,86696.0,86695.0,0.00257026]
[1764645442591,2.24065082,86696.0,86695.0,0.00057026]
[1764645442982,2.24065082,86696.0,86695.0,0.00257026]
[1764645442983,2.24165279,86696.0,86695.0,0.00257026]
[1764645443182,2.25314082,86696.0,86695.0,0.00257026]
[1764645444196,2.25314082,86696.0,86695.0,0.00057026]
[1764645444669,2.25314082,86696.0,86695.0,0.00157026]
[1764645445811,2.25466918,86696.0,86695.0,0.00157026]
[1764645446008,2.23069115,86696.0,86695.0,0.00157026]
[1764645446830,0.23069115,86696.0,86695.0,0.00157026]
[1764645447047,2.23069115,86696.0,86695.0,0.00157026]
[1764645447238,2.23069115,86696.0,86695.0,0.11249026]
[1764645447887,2.23069115,86696.0,86695.0,0.06191026]
[1764645448804,2.23069115,86696.0,86695.0,0.11249026]
[1764645449416,2.2555283,86696.0,86695.0,0.11249026]
[1764645452266,2.23069115,86696.0,86695.0,0.11249026]
[1764645453919,2.25555075,86696.0,86695.0,0.11249026]
[1764645460879,2.26790075,86696.0,86695.0,0.00157026]
[1764645461126,2.6693263,86696.0,86695.0,0.00157026]
[1764645461346,2.6942963,86696.0,86695.0,0.00157026]
[1764645462182,0.6942963,86696.0,86695.0,0.00157026]
[1764645462376,2.6942963,86696.0,86695.0,0.00157026]
[1764645462580,2.80952226,86696.0,86695.0,0.00057026]
[1764645462780,2.81052226,86696.0,86695.0,0.00057026]
[1764645463135,2.80952226,86696.0,86695.0,0.00057026]
[1764645463339,2.81052226,86696.0,86695.0,0.00057026]
[1764645465348,2.85191899,86696.0,86695.0,0.00057026]
[1764645465944,2.81052226,86696.0,86695.0,0.00057026]
[1764645466121,2.84156981,86696.0,86695.0,0.00057026]
[1764645466323,3.05502226,86696.0,86695.0,0.00057026]
[1764645466504,0.24219248,86691.0,86690.0,0.0002]
[1764645466715,2.36976844,86691.0,86690.0,0.0002]
[1764645466914,2.40697804,86691.0,86690.0,0.0002]
[1764645467097,2.41160422,86691.0,86690.0,0.0002]
[1764645467298,2.29637826,86691.0,86690.0,0.0002]
[1764645470518,2.28402826,86691.0,86690.0,0.0002]
[1764645471070,2.29637826,86691.0,86690.0,0.0002]
[1764645472283,2.54087826,86691.0,86690.0,0.0002]
[1764645473126,2.51704023,86691.0,86690.0,0.0002]
[1764645473451,2.63226619,86691.0,86690.0,0.0002]
[1764645473916,2.51704023,86691.0,86690.0,0.0002]
[1764645474121,2.52852826,86691.0,86690.0,0.0002]
[1764645474335,2.29782381,86691.0,86690.0,0.0002]
[1764645474472,2.52852826,86691.0,86690.0,0.0002]
[1764645476136,2.50006405,86691.0,86690.0,0.08344]
[1764645476590,2.50006405,86691.0,86690.0,0.03451]
[1764645476975,2.50006405,86691.0,86690.0,0.08344]
[1764645477176,2.50006405,86691.0,86690.0,0.0002]
[1764645477383,2.61529001,86691.0,86690.0,0.0002]
[1764645478339,2.50006405,86691.0,86690.0,0.08344]
[1764645479741,2.50006405,86691.0,86690.0,0.0002]
[1764645479742,2.51155208,86691.0,86690.0,0.0002]
[1764645480059,2.50006405,86691.0,86690.0,0.08344]
[1764645481151,2.47520445,86691.0,86690.0,0.08344]
[1764645482150,2.47520445,86691.0,86690.0,0.08544]
[1764645484149,2.23070445,86691.0,86690.0,0.08544]
[1764645485354,2.25552202,86691.0,86690.0,0.08544]
[1764645485997,0.25552202,86691.0,86690.0,0.08544]
[1764645486243,0.23070445,86691.0,86690.0,0.08544]
[1764645486399,0.24219248,86691.0,86690.0,0.0022]
[1764645487332,0.24219248,86691.0,86690.0,0.0002]
[1764645487646,0.24219248,86691.0,86690.0,0.08957]
[1764645487806,0.24219248,86691.0,86690.0,0.09157]
[1764645488633,0.23070445,86691.0,86690.0,0.09157]
[1764645490546,0.23062792,86691.0,86690.0,0.09157]
[1764645493336,0.23062792,86691.0,86690.0,0.03627]
[1764645493542,0.23062792,86691.0,86690.0,0.0022]
[1764645496963,0.23062792,86691.0,86690.0,0.09157]
[1764645504229,0.24211595,86691.0,86690.0,0.09157]
[1764645504430,0.23062792,86691.0,86690.0,0.0022]
[1764645504627,0.23062792,86691.0,86690.0,0.09157]
[1764645505746,0.23062792,86691.0,86690.0,0.10075235]
[1764645505952,0.23062792,86691.0,86690.0,0.09157]
[1764645507191,0.23062792,86691.0,86690.0,0.08957]
[1764645507733,0.23062792,86691.0,86690.0,0.09057]
[1764645518937,0.23070425,86692.0,86690.0,0.09057]
[1764645519144,0.23070425,86692.0,86691.0,0.05034]
[1764645519354,0.0630133,86692.0,86691.0,0.1083]
[1764645519848,0.01153429,86698.0,86691.0,0.1083]
[1764645520081,0.01153203,86715.0,86702.0,0.01153375]
[1764645520273,0.01153256,86711.0,86709.0,0.02605]
[1764645520576,0.2421844,86711.0,86709.0,0.02605]
[1764645520776,0.2421844,86711.0,86710.0,0.08225]
[1764645521963,0.2421844,86711.0,86710.0,0.08325]
[1764645523039,0.2421844,86711.0,86710.0,0.08625]
[1764645528528,0.06921014,86713.0,86710.0,0.08625]
[1764645528844,0.06921014,86713.0,86712.0,0.03191]
[1764645529440,0.06921014,86713.0,86712.0,0.1083]
[1764645530367,0.06921014,86713.0,86712.0,0.1113]
[1764645530908,0.24217758,86714.0,86712.0,0.1113]
[1764645531137,0.24217758,86714.0,86713.0,0.08225]
[1764645532367,0.24217758,86714.0,86713.0,0.08425]
[1764645533966,0.24217758,86714.0,86713.0,0.08525]
[1764645541561,0.24217758,86714.0,86713.0,0.003]
[1764645542191,0.24217758,86714.0,86713.0,0.001]
[1764645542405,0.24217758,86714.0,86713.0,0.08225]
[1764645542613,0.24217758,86714.0,86713.0,0.08425]
[1764645543035,0.08484976,86714.0,86713.0,0.08425]
[1764645546782,0.11168779,86714.0,86713.0,0.002]
[1764645546978,0.09633779,86714.0,86713.0,0.002]
[1764645547607,0.11442991,86714.0,86713.0,0.002]
[1764645548022,0.24213661,86712.0,86711.0,0.02594]
[1764645548552,0.26692794,86712.0,86711.0,0.02594]
[1764645549535,0.26692794,86712.0,86711.0,0.02794]
[1764645549982,0.25543991,86712.0,86711.0,0.11627]
[1764645550147,0.25543991,86712.0,86711.0,0.06301]
[1764645552255,0.25543991,86712.0,86711.0,0.11627]
[1764645553949,0.23064858,86712.0,86711.0,0.11627]
[1764645554565,0.01153149,86719.0,86711.0,0.11627]
[1764645554767,8.882e-05,86719.0,86716.0,0.02594]
[1764645555023,8.882e-05,86719.0,86718.0,0.03507]
[1764645555356,8.882e-05,86719.0,86718.0,0.08833]
[1764645558244,8.882e-05,86719.0,86718.0,0.09233]
[1764645562172,8.882e-05,86719.0,86718.0,0.09133]
[1764645562384,8.882e-05,86719.0,86718.0,0.08833]
[1764645562750,8.882e-05,86719.0,86718.0,0.09033]
[1764645566314,0.07427743,86720.0,86719.0,0.08833]
[1764645568225,0.07427743,86720.0,86719.0,0.09033]
[1764645576993,0.01153123,86721.0,86719.0,0.09033]
[1764645577193,0.01153123,86721.0,86720.0,0.08994]
[1764645578877,0.24215763,86721.0,86720.0,0.09194]
[1764645586263,0.07659507,86721.0,86720.0,0.09194]
[1764645587034,0.0881263,86721.0,86720.0,0.09194]
[1764645587754,0.0881263,86721.0,86720.0,0.15744653]
[1764645591302,0.0881263,86721.0,86720.0,0.09194]
[1764645591465,0.18637321,86723.0,86722.0,0.06207]
[1764645591802,0.24214751,86724.0,86722.0,0.06207]
[1764645591978,0.24214751,86724.0,86723.0,0.03589]
[1764645592195,0.24214751,86724.0,86723.0,0.08994]
[1764645593011,0.323,86723.0,86722.0,0.001]
[1764645593195,0.01153296,86708.0,86705.0,0.02618]
[1764645593408,0.29987202,86707.0,86706.0,0.02618]
[1764645593632,0.32469324,86707.0,86706.0,0.02618]
[1764645594921,0.32469324,86707.0,86705.0,0.02626882]
[1764645595121,0.29987202,86707.0,86705.0,0.08031882]
[1764645595526,0.29987202,86707.0,86706.0,0.08994]
[1764645595723,0.41272792,86707.0,86706.0,0.08994]
[1764645595938,0.41272792,86707.0,86706.0,0.09194]
[1764645596137,0.38792852,86707.0,86706.0,0.08994]
[1764645596704,0.38792852,86707.0,86706.0,0.03589]
[1764645597931,0.38792852,86707.0,86705.0,0.02626882]
[1764645598136,0.50315448,86707.0,86705.0,8.882e-05]
[1764645598335,2.02972803,86706.0,86705.0,8.882e-05]
[1764645599933,0.02972803,86706.0,86705.0,8.882e-05]
[1764645600138,2.02972803,86706.0,86705.0,8.882e-05]
[1764645600942,2.4807065,86706.0,86705.0,8.882e-05]
[1764645601140,2.4807065,86706.0,86695.0,0.00137219]
[1764645601141,0.01153429,86698.0,86695.0,0.00137219]
[1764645601343,2.36938803,86696.0,86695.0,0.00137219]
[1764645601541,2.36938803,86696.0,86680.0,0.05425]
[1764645601542,2.56519248,86691.0,86680.0,0.0002]
[1764645601765,2.67662026,86691.0,86680.0,0.0002]
[1764645602133,2.69407026,86691.0,86680.0,0.0002]
[1764645603263,2.69607026,86691.0,86680.0,0.0002]
[1764645603679,2.42314817,86691.0,86682.0,0.02618]
[1764645603873,2.65385262,86691.0,86682.0,0.02618]
[1764645604782,0.23072574,86683.0,86682.0,0.02618]
[1764645605190,0.23072574,86683.0,86682.0,0.06207]
[1764645605370,0.23072574,86683.0,86682.0,0.11612]
[1764645605992,0.23172574,86683.0,86682.0,0.11612]
[1764645606512,0.23172574,86683.0,86682.0,0.11969]
[1764645607550,0.31865484,86683.0,86682.0,0.11969]
[1764645609789,0.40541394,86683.0,86682.0,0.11969]
[1764645610119,0.31865484,86683.0,86682.0,0.11969]
[1764645612364,0.31865484,86683.0,86682.0,0.12010196]
[1764645613784,0.31865484,86683.0,86682.0,0.00041196]
[1764645614217,0.34206484,86683.0,86682.0,0.00041196]
[1764645614431,0.34206484,86683.0,86680.0,0.0002]
[1764645614432,2.5652191,86681.0,86680.0,0.0002]
[1764645614659,2.5886291,86681.0,86680.0,0.0002]
[1764645614857,0.56522974,86677.0,86666.0,0.0271]
[1764645615068,0.58863974,86677.0,86666.0,0.0271]
[1764645615286,0.61573974,86677.0,86666.0,0.0271]
[1764645615502,0.70469157,86677.0,86666.0,0.0271]
[1764645615705,0.68128157,86677.0,86671.0,0.0271]
[1764645616133,0.59232974,86677.0,86671.0,0.0271]
[1764645620066,0.59232974,86677.0,86674.0,0.00025355]
[1764645620278,0.61699321,86677.0,86674.0,0.00025355]
[1764645621283,0.61705537,86677.0,86674.0,0.00025355]
[1764645621476,0.60556734,86677.0,86674.0,0.00025355]
[1764645623131,0.61705537,86677.0,86674.0,0.00025355]
[1764645623270,0.73228133,86677.0,86674.0,0.00025355]
[1764645625300,0.7442033,86677.0,86674.0,0.00025355]
[1764645625580,2.81014888,86677.0,86674.0,0.00025355]
[1764645625772,2.81544885,86677.0,86674.0,0.00025355]
[1764645626521,2.61705537,86677.0,86674.0,0.00025355]
[1764645626899,2.64046537,86677.0,86674.0,0.00025355]
[1764645627533,2.64146537,86677.0,86674.0,0.00025355]
[1764645628250,2.6828621,86677.0,86674.0,0.00025355]
[1764645628439,2.64146537,86677.0,86674.0,0.00025355]
[1764645629117,0.23076834,86667.0,86666.0,0.05025155]
[1764645629642,0.23076834,86667.0,86666.0,0.05050514]
[1764645630565,0.23076834,86667.0,86666.0,0.00025359]
[1764645630773,0.23076834,86667.0,86666.0,0.00125359]
[1764645630972,0.24225637,86667.0,86666.0,0.00125359]
[1764645631428,0.32994856,86667.0,86666.0,0.00125359]
[1764645631587,0.35461203,86667.0,86666.0,0.00125359]
[1764645631988,0.38461203,86667.0,86666.0,0.00125359]
[1764645632208,0.35461203,86667.0,86666.0,0.00125359]
[1764645632409,0.26691984,86667.0,86666.0,0.00125359]
[1764645632644,0.24225637,86667.0,86666.0,0.00125359]
[1764645633120,0.56525637,86667.0,86666.0,0.00125359]
[1764645633338,0.62084712,86667.0,86666.0,0.00125359]
[1764645636144,0.6208444,86667.0,86666.0,0.00125359]
[1764645636345,0.73607036,86667.0,86666.0,0.00125359]
[1764645636541,2.76566036,86667.0,86666.0,0.00125359]
[1764645636798,2.79276036,86667.0,86666.0,0.00125359]
[1764645637032,0.79276036,86667.0,86666.0,0.00125359]
[1764645637237,2.79276036,86667.0,86666.0,0.00125359]
[1764645637443,2.82235036,86667.0,86666.0,0.00125359]
[1764645637617,2.75034777,86667.0,86666.0,0.00125359]
[1764645637852,2.7618358,86667.0,86666.0,0.00125359]
[1764645638589,2.72075777,86667.0,86666.0,0.00125359]
[1764645638940,2.7914258,86667.0,86666.0,0.00125359]
[1764645639437,2.7618358,86667.0,86666.0,0.00125359]
[1764645639587,2.7618358,86667.0,86666.0,0.00025359]
[1764645639791,0.55378432,86661.0,86645.0,0.05712]
[1764645639994,2.63776582,86661.0,86645.0,0.05712]
[1764645640320,2.66735582,86661.0,86645.0,0.05712]
[1764645640523,2.63776582,86661.0,86645.0,0.05712]
[1764645640723,2.63776582,86661.0,86647.0,0.05712]
[1764645641120,2.63976582,86661.0,86644.0,0.02852]
[1764645641324,2.75792235,86661.0,86644.0,0.02852]
[1764645641727,2.84406792,86661.0,86644.0,0.02852]
[1764645642648,2.87258792,86661.0,86644.0,0.02852]
[1764645643437,2.75443139,86661.0,86648.0,0.05712]
[1764645644159,2.70660139,86661.0,86659.0,0.02852]
[1764645644363,2.72484139,86661.0,86659.0,0.02852]
[1764645644770,2.72484139,86661.0,86653.0,0.08564]
[1764645645581,2.72484139,86661.0,86658.0,0.00025362]
[1764645649776,2.72484139,86661.0,86659.0,0.02852]
[1764645650069,2.72484139,86661.0,86658.0,0.00025362]
[1764645650070,2.75443139,86661.0,86658.0,0.00025362]
[1764645651013,2.76104362,86661.0,86658.0,0.00025362]
[1764645651237,2.77253165,86661.0,86658.0,0.00025362]
[1764645651515,2.88775761,86661.0,86658.0,0.00025362]
[1764645652425,2.91869373,86661.0,86658.0,0.00025362]
[1764645653152,2.88775761,86661.0,86658.0,0.00025362]
[1764645653354,2.91869373,86661.0,86658.0,0.00025362]
[1764645654009,0.91869373,86661.0,86658.0,0.00025362]
[1764645654220,2.88775761,86661.0,86658.0,0.00025362]
[1764645654420,2.91869373,86661.0,86658.0,0.00025362]
[1764645654802,2.94828373,86661.0,86658.0,0.00025362]
[1764645655398,2.88775761,86661.0,86658.0,0.00025362]
[1764645655603,2.91734761,86661.0,86658.0,0.00025362]
[1764645658613,0.55378964,86659.0,86658.0,0.00025362]
[1764645658831,2.62690114,86659.0,86658.0,0.00025362]
[1764645659036,2.69283866,86659.0,86658.0,0.00025362]
[1764645659241,2.72754965,86659.0,86658.0,0.00025362]
[1764645659661,2.69120213,86659.0,86658.0,0.00025362]
[1764645659861,2.80642809,86659.0,86658.0,0.00025362]
[1764645660256,2.80742809,86659.0,86658.0,0.00025362]
[1764645660579,2.84865408,86659.0,86658.0,0.00025362]
[1764645663561,2.84865408,86659.0,86634.0,0.02852]
[1764645663562,0.24234161,86635.0,86634.0,0.02852]
[1764645663953,0.23085358,86635.0,86634.0,0.12116]
[1764645664587,0.24234161,86635.0,86634.0,0.12116]
[1764645664777,0.24234161,86635.0,86634.0,0.12254508]
[1764645665208,0.23085358,86635.0,86634.0,0.12254508]
[1764645665577,0.30006372,86635.0,86634.0,0.12254508]
[1764645667310,0.3177859,86635.0,86634.0,0.12254508]
[1764645667738,0.30006372,86635.0,86634.0,0.02990508]
[1764645667940,0.30006372,86635.0,86634.0,0.00138508]
[1764645668106,0.6715321,86635.0,86634.0,0.00138508]
[1764645668310,2.76132463,86635.0,86634.0,0.00138508]
[1764645668512,2.75971867,86635.0,86634.0,0.00138508]
[1764645668736,2.90589018,86635.0,86634.0,0.00138508]
[1764645668943,2.82746463,86635.0,86634.0,0.00138508]
[1764645669172,2.82746463,86635.0,86634.0,0.0011462]
[1764645669386,2.85320463,86635.0,86634.0,0.0011462]
[1764645669602,2.87694463,86635.0,86634.0,0.0011462]
[1764645669819,2.87694463,86635.0,86630.0,0.0002]
[1764645669820,2.56535227,86631.0,86630.0,0.0002]
[1764645670047,2.61382065,86631.0,86630.0,0.00031565]
[1764645670245,2.56537892,86621.0,86620.0,0.0002]
[1764645670459,2.63205832,86621.0,86620.0,0.00031548]
[1764645671402,2.60831832,86621.0,86620.0,0.00031548]
[1764645671602,2.63205832,86621.0,86620.0,0.00031548]